fUSD/lending_fUSD_20260601
["ID","MTS","AMOUNT","RATE_DAILY","PERIOD"]
[423619575,1780262399000,-500.0,8.631e-05,2]
[423619574,1780262399000,-500.0,8.631e-05,2]
[423619577,1780262399000,-400.0,8.631e-05,2]
[423619573,1780262399000,-500.0,8.631e-05,2]
[423619571,1780262399000,-500.0,8.631e-05,2]
[423619578,1780262399000,-500.0,8.631e-05,2]
[423619592,1780262576000,150.73,0.00028973,120]
[423619595,1780262582000,859.0,0.0003013,120]
[423619594,1780262582000,441.0,0.0003013,120]
[423619596,1780262585000,196.4635467,0.0003013,120]
[423619598,1780262588000,10152.0,0.0003013,120]
[423619597,1780262588000,1754.0,0.0003013,120]
[423619599,1780262644000,1023.0,0.0003013,120]
[423619600,1780262646000,6154.0,0.0003013,120]
[423619604,1780262686000,145.65807174,6.871e-05,2]
[423619605,1780262686000,59.11192826,6.871e-05,2]
[423619608,1780262702000,10972.25526359,0.0003013,120]
[423619614,1780262802000,-582.93788305,7.763e-05,2]
[423619619,1780262938000,-2926.93,7.42e-05,2]
[423619618,1780262938000,-1559.82,7.408e-05,2]
[423619620,1780262938000,-1513.25,7.433e-05,2]
[423619623,1780262961000,150.0,7.21e-05,2]
[423619625,1780262962000,-17.97211695,7.763e-05,2]
[423619624,1780262962000,-86.75,7.433e-05,2]
[423619627,1780262962000,-600.91,7.849e-05,2]
[423619629,1780262962000,-600.91,7.935e-05,2]
[423619626,1780262962000,-600.91,7.806e-05,2]
[423619630,1780262962000,-600.91,7.978e-05,2]
[423619631,1780262962000,-600.91,8.021e-05,2]
[423619634,1780262962000,-161.20175971,8.107e-05,2]
[423619632,1780262962000,-150.0,8.027e-05,2]
[423619633,1780262962000,-600.91,8.064e-05,2]
[423619628,1780262962000,-600.91,7.892e-05,2]
[423619671,1780263032000,-6376.58082677,8.532e-05,2]
[423619668,1780263032000,-300.0,8.53e-05,2]
[423619666,1780263032000,-300.0,8.53e-05,2]
[423619677,1780263032000,-600.91,8.537e-05,2]
[423619669,1780263032000,-150.0,8.531e-05,2]
[423619672,1780263032000,-7655.67917323,8.532e-05,2]
[423619674,1780263032000,-10000.0,8.532e-05,2]
[423619673,1780263032000,-2500.0,8.532e-05,2]
[423619683,1780263032000,-4995.0,8.582e-05,2]
[423619688,1780263032000,-4673.42,8.582e-05,2]
[423619679,1780263032000,-600.91,8.58e-05,2]
[423619681,1780263032000,-1000.0,8.581e-05,2]
[423619690,1780263032000,-3171.371,8.588e-05,2]
[423619692,1780263032000,-183.089,8.588e-05,2]
[423619667,1780263032000,-300.0,8.53e-05,2]
[423619685,1780263032000,-2336.71,8.582e-05,2]
[423619694,1780263032000,-179.5065138,8.588e-05,2]
[423619696,1780263032000,-14584.0,8.603e-05,2]
[423619675,1780263032000,-624.37765729,8.532e-05,2]
[423619664,1780263032000,-389.31877557,8.451e-05,2]
[423619656,1780263032000,-1371.7688415,8.363e-05,2]
[423619665,1780263032000,-600.91,8.494e-05,2]
[423619699,1780263032000,-17562.0,8.603e-05,2]
[423619644,1780263032000,-166.66,7.773e-05,2]
[423619647,1780263032000,-250.0,8.151e-05,2]
[423619648,1780263032000,-600.91,8.193e-05,2]
[423619653,1780263032000,-10.37123524,8.322e-05,2]
[423619650,1780263032000,-500.0,8.22e-05,2]
[423619652,1780263032000,-600.91,8.279e-05,2]
[423619645,1780263032000,-439.70824029,8.107e-05,2]
[423619646,1780263032000,-600.91,8.15e-05,2]
[423619649,1780263032000,-201.52,8.219e-05,2]
[423619654,1780263032000,-499.50294632,8.322e-05,2]
[423619651,1780263032000,-600.91,8.236e-05,2]
[423619658,1780263032000,-600.91,8.365e-05,2]
[423619657,1780263032000,-228.2311585,8.363e-05,2]
[423619655,1780263032000,-91.03581844,8.322e-05,2]
[423619660,1780263032000,-600.91,8.408e-05,2]
[423619661,1780263032000,-166.66,8.415e-05,2]
[423619659,1780263032000,-250.0,8.379e-05,2]
[423619663,1780263032000,-211.59122443,8.451e-05,2]
[423619662,1780263032000,-1200.0,8.45e-05,2]
[423619707,1780263032000,-428.47994966,8.631e-05,2]
[423619745,1780263032000,-500.0,8.631e-05,2]
[423619701,1780263032000,-6273.4931,8.603e-05,2]
[423619769,1780263032000,-500.0,8.631e-05,2]
[423619752,1780263032000,-500.0,8.631e-05,2]
[423619746,1780263032000,-500.0,8.631e-05,2]
[423619755,1780263032000,-500.0,8.631e-05,2]
[423619758,1780263032000,-500.0,8.631e-05,2]
[423619757,1780263032000,-500.0,8.631e-05,2]
[423619762,1780263032000,-500.0,8.631e-05,2]
[423619756,1780263032000,-500.0,8.631e-05,2]
[423619765,1780263032000,-500.0,8.631e-05,2]
[423619761,1780263032000,-500.0,8.631e-05,2]
[423619759,1780263032000,-500.0,8.631e-05,2]
[423619760,1780263032000,-500.0,8.631e-05,2]
[423619763,1780263032000,-500.0,8.631e-05,2]
[423619764,1780263032000,-500.0,8.631e-05,2]
[423619766,1780263032000,-500.0,8.631e-05,2]
[423619770,1780263032000,-500.0,8.631e-05,2]
[423619767,1780263032000,-500.0,8.631e-05,2]
[423619768,1780263032000,-600.0,8.631e-05,2]
[423619718,1780263032000,-500.0,8.631e-05,2]
[423619753,1780263032000,-500.0,8.631e-05,2]
[423619749,1780263032000,-500.0,8.631e-05,2]
[423619750,1780263032000,-500.0,8.631e-05,2]
[423619748,1780263032000,-500.0,8.631e-05,2]
[423619705,1780263032000,-259.66263894,8.631e-05,2]
[423619712,1780263032000,-230.12941221,8.631e-05,2]
[423619703,1780263032000,-500.0,8.63e-05,2]
[423619714,1780263032000,-500.0,8.631e-05,2]
[423619716,1780263032000,-500.0,8.631e-05,2]
[423619751,1780263032000,-500.0,8.631e-05,2]
[423619720,1780263032000,-500.0,8.631e-05,2]
[423619724,1780263032000,-500.0,8.631e-05,2]
[423619733,1780263032000,-500.0,8.631e-05,2]
[423619728,1780263032000,-500.0,8.631e-05,2]
[423619709,1780263032000,-500.0,8.631e-05,2]
[423619726,1780263032000,-236.74005811,8.631e-05,2]
[423619735,1780263032000,-500.0,8.631e-05,2]
[423619730,1780263032000,-500.0,8.631e-05,2]
[423619740,1780263032000,-300.03335288,8.631e-05,2]
[423619737,1780263032000,-500.0,8.631e-05,2]
[423619744,1780263032000,-500.0,8.631e-05,2]
[423619754,1780263032000,-500.0,8.631e-05,2]
[423619747,1780263032000,-500.0,8.631e-05,2]
[423619742,1780263032000,-500.0,8.631e-05,2]
[423619785,1780263033000,-500.0,8.631e-05,2]
[423619779,1780263033000,-500.0,8.631e-05,2]
[423619775,1780263033000,-500.0,8.631e-05,2]
[423619773,1780263033000,-500.0,8.631e-05,2]
[423619776,1780263033000,-500.0,8.631e-05,2]
[423619772,1780263033000,-500.0,8.631e-05,2]
[423619771,1780263033000,-500.0,8.631e-05,2]
[423619780,1780263033000,-500.0,8.631e-05,2]
[423619774,1780263033000,-500.0,8.631e-05,2]
[423619777,1780263033000,-500.0,8.631e-05,2]
[423619786,1780263033000,-150.0,8.631e-05,2]
[423619782,1780263033000,-500.0,8.631e-05,2]
[423619783,1780263033000,-499.99999999,8.631e-05,2]
[423619790,1780263033000,-324793.80068066,8.632e-05,2]
[423619791,1780263033000,-1254.41808677,8.632e-05,2]
[423619788,1780263033000,-64236.2183023,8.632e-05,2]
[423619789,1780263033000,-99577.41861847,8.632e-05,2]
[423619784,1780263033000,-500.0,8.631e-05,2]
[423619781,1780263033000,-500.0,8.631e-05,2]
[423619778,1780263033000,-500.0,8.631e-05,2]
[423619787,1780263033000,-517834.00229329,8.632e-05,2]
[423619834,1780263038000,-157.89404353,9.616e-05,2]
[423619825,1780263038000,-500.0,9.452e-05,2]
[423619830,1780263038000,-150.0,9.616e-05,2]
[423619826,1780263038000,-201.52,9.589e-05,2]
[423619832,1780263038000,-150.0,9.616e-05,2]
[423619827,1780263038000,-150.0,9.616e-05,2]
[423619833,1780263038000,-150.0,9.616e-05,2]
[423619839,1780263038000,-157.89404353,9.649e-05,2]
[423619844,1780263038000,-150.0,9.671e-05,2]
[423619838,1780263038000,-150.0,9.644e-05,2]
[423619840,1780263038000,-150.0,9.659e-05,2]
[423619828,1780263038000,-150.0,9.616e-05,2]
[423619841,1780263038000,-157.89404353,9.66e-05,2]
[423619837,1780263038000,-157.89404353,9.638e-05,2]
[423619836,1780263038000,-157.89404353,9.627e-05,2]
[423619842,1780263038000,-150.0,9.663e-05,2]
[423619835,1780263038000,-150.0,9.616e-05,2]
[423619829,1780263038000,-150.0,9.616e-05,2]
[423619821,1780263038000,-1680.0,9.295e-05,2]
[423619824,1780263038000,-255.0,9.384e-05,2]
[423619807,1780263038000,-1516.99839831,8.632e-05,2]
[423619808,1780263038000,-1458367.22812792,8.632e-05,2]
[423619810,1780263038000,-6692.6181,8.632e-05,2]
[423619811,1780263038000,-317.04474012,8.632e-05,2]
[423619809,1780263038000,-1500000.0,8.632e-05,2]
[423619820,1780263038000,-1600.0,9.292e-05,2]
[423619812,1780263038000,-5318.71916409,8.632e-05,2]
[423619831,1780263038000,-150.0,9.616e-05,2]
[423619814,1780263038000,-250.0,8.83e-05,2]
[423619818,1780263038000,-201.52,9.132e-05,2]
[423619817,1780263038000,-166.66,9.056e-05,2]
[423619816,1780263038000,-14738.14515273,9.04e-05,2]
[423619815,1780263038000,-500.0,8.904e-05,2]
[423619813,1780263038000,-201.52,8.676e-05,2]
[423619823,1780263038000,-420.0,9.383e-05,2]
[423619822,1780263038000,-420.0,9.383e-05,2]
[423619819,1780263038000,-500.0,9.178e-05,2]
[423619843,1780263038000,-157.89404353,9.67e-05,2]
[423619851,1780263038000,-150.0,9.709e-05,2]
[423619848,1780263038000,-150.0,9.699e-05,2]
[423619878,1780263038000,-157.89404353,9.789e-05,2]
[423619876,1780263038000,-150.0,9.787e-05,2]
[423619897,1780263038000,-157.89404353,9.811e-05,2]
[423619893,1780263038000,-150.0,9.802e-05,2]
[423619901,1780263038000,-150.0,9.83e-05,2]
[423619905,1780263038000,-157.89404353,9.832e-05,2]
[423619885,1780263038000,-169.9,9.8e-05,2]
[423619873,1780263038000,-157.89404353,9.778e-05,2]
[423619895,1780263038000,-150.0,9.808e-05,2]
[423619891,1780263038000,-169.8,9.8e-05,2]
[423619899,1780263038000,-157.89404353,9.822e-05,2]
[423619907,1780263038000,-150.0,9.836e-05,2]
[423619888,1780263038000,-169.9,9.8e-05,2]
[423619887,1780263038000,-169.9,9.8e-05,2]
[423619909,1780263038000,-157.89404353,9.843e-05,2]
[423619846,1780263038000,-190.293366,9.689e-05,2]
[423619903,1780263038000,-150.0,9.83e-05,2]
[423619872,1780263038000,-157.89404353,9.768e-05,2]
[423619883,1780263038000,-205.0,9.8e-05,2]
[423619880,1780263038000,-157.89404353,9.8e-05,2]
[423619849,1780263038000,-150.0,9.702e-05,2]
[423619868,1780263038000,-150.0,9.756e-05,2]
[423619856,1780263038000,-150.0,9.726e-05,2]
[423619854,1780263038000,-150.0,9.723e-05,2]
[423619853,1780263038000,-157.89404353,9.714e-05,2]
[423619847,1780263038000,-157.89404353,9.692e-05,2]
[423619850,1780263038000,-157.89404353,9.703e-05,2]
[423619855,1780263038000,-157.89404353,9.724e-05,2]
[423619852,1780263038000,-200.0,9.712e-05,2]
[423619845,1780263038000,-157.89404353,9.681e-05,2]
[423619870,1780263038000,-157.89404353,9.757e-05,2]
[423619864,1780263038000,-157.89404353,9.746e-05,2]
[423619860,1780263038000,-157.89404353,9.735e-05,2]
[423619862,1780263038000,-150.0,9.745e-05,2]
[423619875,1780263038000,-150.0,9.781e-05,2]
[423619858,1780263038000,-500.0,9.726e-05,2]
[423619866,1780263038000,-150.0,9.753e-05,2]
[423619997,1780263039000,-157.89404353,0.00010027,2]
[423619995,1780263039000,-157.89404353,0.00010016,2]
[423619993,1780263039000,-157.89404353,0.00010005,2]
[423619991,1780263039000,-150.0,0.00010001,2]
[423619972,1780263039000,-2160.02052502,0.0001,2]
[423619989,1780263039000,-500.0,0.0001,2]
[423619987,1780263039000,-163.57,0.0001,2]
[423619983,1780263039000,-3193.7694955,0.0001,2]
[423619960,1780263039000,-157.89404353,9.994e-05,2]
[423619970,1780263039000,-2160.02052503,0.0001,2]
[423619976,1780263039000,-340.0,0.0001,2]
[423619963,1780263039000,-150.0,0.0001,2]
[423619985,1780263039000,-3193.7694955,0.0001,2]
[423619979,1780263039000,-340.0,0.0001,2]
[423620009,1780263039000,-150.0,0.00010044,2]
[423619981,1780263039000,-340.26337355,0.0001,2]
[423620001,1780263039000,-4000.0,0.00010027,2]
[423620005,1780263039000,-157.89404353,0.00010037,2]
[423619999,1780263039000,-150.0,0.00010027,2]
[423620011,1780263039000,-201.52,0.00010046,2]
[423620003,1780263039000,-150.0,0.00010035,2]
[423620017,1780263039000,-157.89404353,0.00010059,2]
[423620015,1780263039000,-150.0,0.00010055,2]
[423620013,1780263039000,-157.89404353,0.00010048,2]
[423620019,1780263039000,-157.89404353,0.0001007,2]
[423620021,1780263039000,-157.89404353,0.00010081,2]
[423620033,1780263039000,-157.89404353,0.00010102,2]
[423619966,1780263039000,-1179.76228983,0.0001,2]
[423619974,1780263039000,-155.40991803,0.0001,2]
[423619965,1780263039000,-379.14135292,0.0001,2]
[423619935,1780263039000,-157.89404353,9.908e-05,2]
[423619968,1780263039000,-11382.71454087,0.0001,2]
[423620027,1780263039000,-150.0,0.00010087,2]
[423619912,1780263039000,-150.0,9.849e-05,2]
[423619916,1780263039000,-150.0,9.863e-05,2]
[423619920,1780263039000,-150.0,9.873e-05,2]
[423619931,1780263039000,-150.0,9.895e-05,2]
[423619927,1780263039000,-157.89404353,9.886e-05,2]
[423619929,1780263039000,-150.0,9.89e-05,2]
[423619923,1780263039000,-157.89404353,9.875e-05,2]
[423619914,1780263039000,-157.89404353,9.854e-05,2]
[423619918,1780263039000,-157.89404353,9.865e-05,2]
[423619925,1780263039000,-150.0,9.884e-05,2]
[423619933,1780263039000,-157.89404353,9.897e-05,2]
[423619946,1780263039000,-157.89404353,9.94e-05,2]
[423619958,1780263039000,-150.0,9.988e-05,2]
[423619945,1780263039000,-150.0,9.937e-05,2]
[423619940,1780263039000,-157.89404353,9.919e-05,2]
[423619949,1780263039000,-157.89404353,9.951e-05,2]
[423619950,1780263039000,-150.0,9.958e-05,2]
[423619943,1780263039000,-157.89404353,9.929e-05,2]
[423619939,1780263039000,-150.0,9.918e-05,2]
[423619937,1780263039000,-150.0,9.916e-05,2]
[423619948,1780263039000,-150.0,9.945e-05,2]
[423619944,1780263039000,-250.0,9.936e-05,2]
[423619951,1780263039000,-157.89404353,9.962e-05,2]
[423619952,1780263039000,-150.0,9.973e-05,2]
[423619953,1780263039000,-150.0,9.973e-05,2]
[423619954,1780263039000,-157.89404353,9.973e-05,2]
[423619956,1780263039000,-157.89404353,9.983e-05,2]
[423619947,1780263039000,-150.0,9.942e-05,2]
[423620039,1780263039000,-157.89404353,0.00010124,2]
[423620007,1780263039000,-150.0,0.00010044,2]
[423620037,1780263039000,-157.89404353,0.00010113,2]
[423620092,1780263039000,-150.0,0.00010258,2]
[423620087,1780263039000,-150.0,0.00010247,2]
[423620089,1780263039000,-157.89404353,0.00010253,2]
[423620100,1780263039000,-157.89404353,0.00010275,2]
[423620116,1780263039000,-157.89404353,0.00010318,2]
[423620097,1780263039000,-150.0,0.00010274,2]
[423620098,1780263039000,-500.0,0.00010274,2]
[423620114,1780263039000,-150.0,0.00010313,2]
[423620095,1780263039000,-150.0,0.00010267,2]
[423620107,1780263039000,-207749.67860328,0.000103,2]
[423620112,1780263039000,-157.89404353,0.00010307,2]
[423620105,1780263039000,-157.89404353,0.00010296,2]
[423620109,1780263039000,-150.0,0.000103,2]
[423620102,1780263039000,-4000.0,0.00010278,2]
[423620110,1780263039000,-150.0,0.00010301,2]
[423620117,1780263039000,-587.0,0.00010321,2]
[423620103,1780263039000,-157.89404353,0.00010286,2]
[423620131,1780263039000,-157.89404353,0.0001035,2]
[423620119,1780263039000,-520.0,0.00010321,2]
[423620133,1780263039000,-150.0,0.00010356,2]
[423620136,1780263039000,-157.89404353,0.00010361,2]
[423620135,1780263039000,-150.0,0.0001036,2]
[423620138,1780263039000,-150.0,0.00010364,2]
[423620140,1780263039000,-157.89404353,0.00010372,2]
[423620121,1780263039000,-433.0,0.00010322,2]
[423620128,1780263039000,-157.89404353,0.0001034,2]
[423620122,1780263039000,-150.0,0.00010329,2]
[423620124,1780263039000,-150.0,0.00010329,2]
[423620029,1780263039000,-157.89404353,0.00010091,2]
[423620090,1780263039000,-150.0,0.00010258,2]
[423620093,1780263039000,-157.89404353,0.00010264,2]
[423620126,1780263039000,-157.89404353,0.00010329,2]
[423620079,1780263039000,-157.89404353,0.00010221,2]
[423620074,1780263039000,-150.0,0.00010215,2]
[423620035,1780263039000,-150.0,0.0001011,2]
[423620045,1780263039000,-157.89404353,0.00010134,2]
[423620047,1780263039000,-150.0,0.00010137,2]
[423620041,1780263039000,-150.0,0.00010127,2]
[423620023,1780263039000,-150.0,0.00010081,2]
[423620025,1780263039000,-150.0,0.00010082,2]
[423620031,1780263039000,-262.9055822,0.000101,2]
[423620057,1780263039000,-157.89404353,0.00010156,2]
[423620063,1780263039000,-150.0,0.00010172,2]
[423620061,1780263039000,-157.89404353,0.00010167,2]
[423620129,1780263039000,-150.0,0.00010343,2]
[423620051,1780263039000,-150.0,0.00010151,2]
[423620059,1780263039000,-150.0,0.00010164,2]
[423620043,1780263039000,-150.0,0.00010129,2]
[423620065,1780263039000,-150.0,0.00010174,2]
[423620049,1780263039000,-157.89404353,0.00010145,2]
[423620086,1780263039000,-157.89404353,0.00010242,2]
[423620077,1780263039000,-150.0,0.0001022,2]
[423620080,1780263039000,-1600.0,0.00010221,2]
[423620075,1780263039000,-150.0,0.00010219,2]
[423620073,1780263039000,-157.89404353,0.0001021,2]
[423620082,1780263039000,-2351.0,0.00010224,2]
[423620069,1780263039000,-157.89404353,0.00010188,2]
[423620072,1780263039000,-157.89404353,0.00010199,2]
[423620070,1780263039000,-150.0,0.00010192,2]
[423620053,1780263039000,-150.0,0.00010151,2]
[423620084,1780263039000,-157.89404353,0.00010232,2]
[423620067,1780263039000,-157.89404353,0.00010178,2]
[423620055,1780263039000,-150.0,0.00010151,2]
[423620211,1780263040000,-150.0,0.00010578,2]
[423620188,1780263040000,-157.89404353,0.00010523,2]
[423620181,1780263040000,-201.52,0.00010502,2]
[423620183,1780263040000,-157.89404353,0.00010512,2]
[423620184,1780263040000,-150.0,0.00010514,2]
[423620202,1780263040000,-157.89404353,0.00010555,2]
[423620215,1780263040000,-150.0,0.00010592,2]
[423620204,1780263040000,-150.0,0.00010557,2]
[423620206,1780263040000,-157.89404353,0.00010566,2]
[423620217,1780263040000,-157.89404353,0.00010599,2]
[423620198,1780263040000,-150.0,0.00010548,2]
[423620196,1780263040000,-150.0,0.00010546,2]
[423620208,1780263040000,-150.0,0.00010575,2]
[423620218,1780263040000,-150.0,0.00010599,2]
[423620223,1780263040000,-157.89404353,0.0001062,2]
[423620221,1780263040000,-157.89404353,0.00010609,2]
[423620210,1780263040000,-157.89404353,0.00010577,2]
[423620219,1780263040000,-150.0,0.00010603,2]
[423620224,1780263040000,-1000.0,0.00010621,2]
[423620246,1780263040000,-150.0,0.00010685,2]
[423620226,1780263040000,-150.0,0.0001063,2]
[423620235,1780263040000,-157.89404353,0.00010653,2]
[423620229,1780263040000,-150.0,0.00010638,2]
[423620200,1780263040000,-500.0,0.00010548,2]
[423620233,1780263040000,-150.0,0.00010642,2]
[423620213,1780263040000,-157.89404353,0.00010588,2]
[423620194,1780263040000,-157.89404353,0.00010545,2]
[423620159,1780263040000,-157.89404353,0.00010447,2]
[423620192,1780263040000,-157.89404353,0.00010534,2]
[423620241,1780263040000,-157.89404353,0.00010674,2]
[423620146,1780263040000,-157.89404353,0.00010394,2]
[423620150,1780263040000,-150.0,0.00010406,2]
[423620141,1780263040000,-157.89404353,0.00010383,2]
[423620155,1780263040000,-150.0,0.00010428,2]
[423620151,1780263040000,-150.0,0.00010411,2]
[423620152,1780263040000,-157.89404353,0.00010415,2]
[423620142,1780263040000,-150.0,0.00010384,2]
[423620148,1780263040000,-157.89404353,0.00010404,2]
[423620156,1780263040000,-157.89404353,0.00010437,2]
[423620154,1780263040000,-157.89404353,0.00010426,2]
[423620153,1780263040000,-150.0,0.00010418,2]
[423620186,1780263040000,-150.0,0.00010521,2]
[423620144,1780263040000,-150.0,0.00010386,2]
[423620161,1780263040000,-150.0,0.00010453,2]
[423620176,1780263040000,-150.0,0.00010493,2]
[423620167,1780263040000,-157.89404353,0.00010469,2]
[423620163,1780263040000,-157.89404353,0.00010458,2]
[423620173,1780263040000,-157.89404353,0.0001048,2]
[423620169,1780263040000,-150.0,0.00010471,2]
[423620171,1780263040000,-150.0,0.00010471,2]
[423620165,1780263040000,-150.0,0.00010466,2]
[423620174,1780263040000,-157.89404353,0.00010491,2]
[423620178,1780263040000,-150.0,0.00010499,2]
[423620190,1780263040000,-4000.0,0.00010529,2]
[423620179,1780263040000,-157.89404353,0.00010501,2]
[423620157,1780263040000,-150.0,0.00010438,2]
[423620228,1780263040000,-157.89404353,0.00010631,2]
[423620239,1780263040000,-157.89404353,0.00010663,2]
[423620322,1780263040000,-823.0,0.00011353,2]
[423620304,1780263040000,-35032.9760675,0.00011099,2]
[423620310,1780263040000,-35032.9760675,0.00011099,2]
[423620306,1780263040000,-35032.9760675,0.00011099,2]
[423620308,1780263040000,-35032.9760675,0.00011099,2]
[423620318,1780263040000,-1600.0,0.0001115,2]
[423620316,1780263040000,-35032.9760675,0.00011099,2]
[423620314,1780263040000,-35032.9760675,0.00011099,2]
[423620320,1780263040000,-3292.0,0.00011247,2]
[423620324,1780263040000,-736.0,0.00011354,2]
[423620326,1780263040000,-500.0,0.0001137,2]
[423620328,1780263040000,-201.52,0.00011416,2]
[423620330,1780263040000,-500.0,0.00011644,2]
[423620298,1780263040000,-35032.9760675,0.00011099,2]
[423620336,1780263040000,-314.0,0.00011781,2]
[423620341,1780263040000,-500.0,0.00011918,2]
[423620345,1780263040000,-2000.0,0.00012,2]
[423620339,1780263040000,-201.52,0.00011872,2]
[423620332,1780263040000,-317.04474011,0.00011716,2]
[423620343,1780263040000,-2000.0,0.00012,2]
[423620349,1780263040000,-2000.0,0.00012,2]
[423620347,1780263040000,-2000.0,0.00012,2]
[423620360,1780263040000,-2000.0,0.00012,2]
[423620366,1780263040000,-2000.0,0.00012,2]
[423620364,1780263040000,-2000.0,0.00012,2]
[423620362,1780263040000,-2000.0,0.00012,2]
[423620237,1780263040000,-150.0,0.00010658,2]
[423620334,1780263040000,-5318.71916407,0.00011716,2]
[423620283,1780263040000,-51233.0909898,0.00011099,2]
[423620312,1780263040000,-35032.9760675,0.00011099,2]
[423620302,1780263040000,-35032.9760675,0.00011099,2]
[423620231,1780263040000,-157.89404353,0.00010642,2]
[423620247,1780263040000,-150.39769191,0.00010685,2]
[423620244,1780263040000,-2160.02052502,0.00010679,2]
[423620260,1780263040000,-157.89404353,0.00010685,2]
[423620253,1780263040000,-184.02796695,0.00010685,2]
[423620249,1780263040000,-151.29500077,0.00010685,2]
[423620251,1780263040000,-154.34676726,0.00010685,2]
[423620257,1780263040000,-182.88787537,0.00010685,2]
[423620291,1780263040000,-51233.09098976,0.00011099,2]
[423620262,1780263040000,-246.1315779,0.00010685,2]
[423620264,1780263040000,-3193.7694955,0.0001069,2]
[423620265,1780263040000,-3054763.1780938,0.000107,2]
[423620267,1780263040000,-4000.0,0.00010779,2]
[423620269,1780263040000,-500.0,0.00010822,2]
[423620256,1780263040000,-150.0,0.00010685,2]
[423620294,1780263040000,-51233.09098976,0.00011099,2]
[423620273,1780263040000,-201.52,0.00010959,2]
[423620275,1780263040000,-150.0,0.00010989,2]
[423620277,1780263040000,-150.0,0.00010989,2]
[423620285,1780263040000,-51233.09098976,0.00011099,2]
[423620281,1780263040000,-500.0,0.00011096,2]
[423620287,1780263040000,-51233.09098976,0.00011099,2]
[423620289,1780263040000,-51233.09098976,0.00011099,2]
[423620292,1780263040000,-51233.09098976,0.00011099,2]
[423620279,1780263040000,-4000.0,0.0001103,2]
[423620300,1780263040000,-35032.9760675,0.00011099,2]
[423620296,1780263040000,-51233.09098976,0.00011099,2]
[423620271,1780263040000,-150.0,0.00010959,2]
[423620455,1780263041000,-1989.08,0.00013698,2]
[423620426,1780263041000,-500.0,0.00013562,2]
[423620451,1780263041000,-1989.08,0.00013698,2]
[423620461,1780263041000,-1989.08,0.00013698,2]
[423620463,1780263041000,-216.73250781,0.00013698,2]
[423620450,1780263041000,-1989.08,0.00013698,2]
[423620428,1780263041000,-6453.0,0.00013609,2]
[423620445,1780263041000,-1989.08,0.00013698,2]
[423620430,1780263041000,-174.18899724,0.00013698,2]
[423620442,1780263041000,-500.0,0.00013698,2]
[423620440,1780263041000,-500.0,0.00013698,2]
[423620458,1780263041000,-1989.08,0.00013698,2]
[423620447,1780263041000,-1989.08,0.00013698,2]
[423620467,1780263041000,-1989.08,0.00013698,2]
[423620487,1780263041000,-500.0,0.00013698,2]
[423620453,1780263041000,-1989.08,0.00013698,2]
[423620465,1780263041000,-1989.08,0.00013698,2]
[423620456,1780263041000,-1989.08,0.00013698,2]
[423620471,1780263041000,-1989.08,0.00013698,2]
[423620469,1780263041000,-1989.08,0.00013698,2]
[423620476,1780263041000,-1989.08,0.00013698,2]
[423620473,1780263041000,-1989.08,0.00013698,2]
[423620477,1780263041000,-1989.08,0.00013698,2]
[423620489,1780263041000,-500.0,0.00013698,2]
[423620491,1780263041000,-500.0,0.00013698,2]
[423620479,1780263041000,-1989.08,0.00013698,2]
[423620493,1780263041000,-500.0,0.00013698,2]
[423620481,1780263041000,-500.0,0.00013698,2]
[423620432,1780263041000,-500.0,0.00013698,2]
[423620459,1780263041000,-500.0,0.00013698,2]
[423620443,1780263041000,-1989.08,0.00013698,2]
[423620373,1780263041000,-2000.0,0.00012,2]
[423620436,1780263041000,-500.0,0.00013698,2]
[423620368,1780263041000,-2000.0,0.00012,2]
[423620370,1780263041000,-2000.0,0.00012,2]
[423620375,1780263041000,-2000.0,0.00012,2]
[423620385,1780263041000,-2000.0,0.00012,2]